fUST/lending_fUST_20240714
["ID","MTS","AMOUNT","RATE_DAILY","PERIOD"]
[331966318,1720907441654,-500.0,0.00024657,2]
[331966319,1720907441664,-500.0,0.00024657,2]
[331966320,1720907441673,-500.0,0.00024657,2]
[331966321,1720907441683,-500.0,0.00024657,2]
[331966322,1720907441693,-500.0,0.00024657,2]
[331966323,1720907441702,-500.0,0.00024657,2]
[331966324,1720907441712,-500.0,0.00024657,2]
[331966325,1720907441722,-500.0,0.00024657,2]
[331966326,1720907441733,-500.0,0.00024657,2]
[331966327,1720907441743,-209.78652868,0.00024657,2]
[331966328,1720907441754,-500.0,0.00024657,2]
[331966329,1720907441764,-500.0,0.00024657,2]
[331966330,1720907441774,-500.0,0.00024657,2]
[331966331,1720907441783,-500.0,0.00024657,2]
[331966332,1720907441793,-500.0,0.00024657,2]
[331966333,1720907441805,-500.0,0.00024657,2]
[331966334,1720907441817,-500.0,0.00024657,2]
[331966335,1720907441829,-500.0,0.00024657,2]
[331966336,1720907441840,-500.0,0.00024657,2]
[331966337,1720907441849,-500.0,0.00024657,2]
[331966338,1720907441858,-500.0,0.00024657,2]
[331966339,1720907441867,-500.0,0.00024657,2]
[331966340,1720907441876,-500.0,0.00024657,2]
[331966341,1720907441885,-1135.98,0.00024657,2]
[331966342,1720907441894,-500.0,0.00024657,2]
[331966343,1720907441904,-500.0,0.00024657,2]
[331966344,1720907441915,-500.0,0.00024657,2]
[331966345,1720907441924,-505.9787636,0.00024657,2]
[331966346,1720907441934,-500.0,0.00024657,2]
[331966347,1720907441944,-207.41909087,0.00024657,2]
[331966348,1720907441953,-548.39295008,0.00024657,2]
[331966349,1720907441962,-500.0,0.00024657,2]
[331966350,1720907441971,-500.0,0.00024657,2]
[331966351,1720907441982,-538.26969043,0.00024657,2]
[331966352,1720907441992,-500.0,0.00024657,2]
[331966353,1720907442003,-500.0,0.00024657,2]
[331966354,1720907442012,-500.0,0.00024657,2]
[331966355,1720907442022,-500.0,0.00024657,2]
[331966356,1720907442031,-500.0,0.00024657,2]
[331966357,1720907442040,-500.0,0.00024657,2]
[331966358,1720907442052,-500.0,0.00024657,2]
[331966359,1720907442062,-500.0,0.00024657,2]
[331966360,1720907442071,-500.0,0.00024657,2]
[331966361,1720907442081,-500.0,0.00024657,2]
[331966362,1720907442090,-380.0,0.00024658,2]
[331966363,1720907442099,-200.0,0.00024658,2]
[331966364,1720907442109,-500.0,0.00024658,2]
[331966365,1720907442118,-500.0,0.00024658,2]
[331966366,1720907442128,-397.02987974,0.00024658,2]
[331966367,1720907442136,-500.0,0.00024658,2]
[331966368,1720907442146,-500.0,0.00024658,2]
[331966369,1720907442155,-500.0,0.00024658,2]
[331966370,1720907442165,-500.0,0.00024658,2]
[331966371,1720907442174,-500.0,0.00024658,2]
[331966372,1720907442183,-500.0,0.00024658,2]
[331966373,1720907442192,-500.0,0.00024658,2]
[331966374,1720907442202,-500.0,0.00024658,2]
[331966375,1720907442211,-500.0,0.00024658,2]
[331966376,1720907442220,-500.0,0.00024658,2]
[331966377,1720907442230,-500.0,0.00024658,2]
[331966378,1720907442239,-500.0,0.00024658,2]
[331966379,1720907442249,-5657.45500899,0.00024755,2]
[331966380,1720907442260,-1000.0,0.000248,2]
[331966381,1720907442269,-302.27461649,0.000249,2]
[331966382,1720907442279,-16569.3938833,0.00024921,3]
[331966383,1720907442291,-500.0,0.0002493,2]
[331966384,1720907442301,-500.0,0.0002493,2]
[331966385,1720907442311,-500.0,0.0002493,2]
[331966386,1720907442320,-500.0,0.00024931,2]
[331966387,1720907442331,-556.58695521,0.00024931,2]
[331966388,1720907442340,-500.0,0.00024931,2]
[331966389,1720907442349,-356.28190565,0.00024931,2]
[331966390,1720907442360,-500.0,0.00024931,2]
[331966391,1720907442370,-500.0,0.00024931,2]
[331966392,1720907442380,-500.0,0.00024931,2]
[331966393,1720907442389,-500.0,0.00024931,2]
[331966394,1720907442398,-500.0,0.00024931,2]
[331966395,1720907442407,-500.0,0.00024931,2]
[331966396,1720907442416,-500.0,0.00024931,2]
[331966398,1720907442426,-171.95650987,0.00024931,2]
[331966399,1720907442435,-245.38,0.00024931,2]
[331966400,1720907442445,-535.84,0.00024931,2]
[331966402,1720907442455,-524.80255849,0.00024931,2]
[331966404,1720907442465,-500.0,0.00024931,2]
[331966406,1720907442474,-500.0,0.00024931,2]
[331966407,1720907442483,-204.33614322,0.00024931,2]
[331966408,1720907442492,-500.0,0.00024931,2]
[331966409,1720907442502,-500.0,0.00024931,2]
[331966410,1720907442513,-500.0,0.00024931,2]
[331966411,1720907442522,-500.0,0.00024931,2]
[331966412,1720907442532,-503.89,0.00024931,2]
[331966413,1720907442542,-507.62153835,0.00024931,2]
[331966415,1720907442551,-500.0,0.00024931,2]
[331966416,1720907442560,-500.0,0.00024931,2]
[331966417,1720907442569,-500.0,0.00024931,2]
[331966418,1720907442579,-151.0,0.00024931,7]
[331966419,1720907442589,-500.0,0.00024931,2]
[331966421,1720907442598,-500.0,0.00024931,2]
[331966422,1720907442607,-500.0,0.00024931,2]
[331966423,1720907442616,-500.0,0.00024931,2]
[331966424,1720907442625,-500.0,0.00024931,2]
[331966426,1720907442635,-500.0,0.00024931,2]
[331966427,1720907442645,-633.58551696,0.00024931,2]
[331966428,1720907442654,-500.0,0.00024931,2]
[331966429,1720907442665,-526.60376622,0.00024931,2]
[331966430,1720907442674,-151.0,0.00024931,7]
[331966432,1720907442684,-500.0,0.00024931,2]
[331966433,1720907442693,-577.621216,0.00024931,7]
[331966434,1720907442703,-151.0,0.00024931,7]
[331966435,1720907442712,-577.621216,0.00024931,7]
[331966436,1720907442722,-500.0,0.00024931,2]
[331966437,1720907442733,-500.0,0.00024931,2]
[331966438,1720907442744,-797.2,0.00024931,2]
[331966439,1720907442754,-500.0,0.00024931,2]
[331966440,1720907442764,-500.0,0.00024931,2]
[331966441,1720907442775,-1500.0,0.00024931,2]
[331966442,1720907442784,-500.0,0.00024931,2]
[331966443,1720907442793,-151.0,0.00024931,7]
[331966444,1720907442803,-151.0,0.00024931,7]
[331966445,1720907442812,-151.0,0.00024931,7]
[331966446,1720907442822,-500.0,0.00024931,2]
[331966447,1720907442831,-500.0,0.00024931,2]
[331966448,1720907442913,-782.620676,0.00024931,7]
[331966449,1720907442922,-782.620676,0.00024931,7]
[331966450,1720907442932,-500.0,0.00024931,2]
[331966451,1720907442941,-500.0,0.00024931,2]
[331966452,1720907442951,-500.0,0.00024931,2]
[331966453,1720907442960,-151.0,0.00024931,7]
[331966454,1720907442969,-506.70019399,0.00024931,2]
[331966455,1720907442978,-157.41178,0.00024931,7]
[331966456,1720907442987,-2111.15,0.00024931,2]
[331966457,1720907442997,-500.0,0.00024931,2]
[331966458,1720907443006,-500.0,0.00024931,2]
[331966459,1720907443015,-500.0,0.00024931,2]
[331966460,1720907443024,-491.252099,0.00024931,7]
[331966461,1720907443033,-151.0,0.00024931,7]
[331966462,1720907443043,-518.08487076,0.00024931,2]
[331966463,1720907443053,-491.252099,0.00024931,7]
[331966464,1720907443063,-500.0,0.00024931,2]
[331966465,1720907443072,-500.0,0.00024931,2]
[331966466,1720907443082,-500.0,0.00024931,2]
[331966467,1720907443092,-500.0,0.00024931,2]
[331966468,1720907443101,-500.0,0.00024931,2]
[331966469,1720907443110,-500.0,0.00024931,2]
[331966470,1720907443119,-151.0,0.00024931,7]
[331966471,1720907443128,-151.0,0.00024931,7]
[331966472,1720907443138,-500.0,0.00024931,2]
[331966473,1720907443147,-500.0,0.00024931,2]
[331966474,1720907443156,-500.0,0.00024931,2]
[331966475,1720907443165,-500.0,0.00024931,2]
[331966476,1720907443175,-151.0,0.00024931,7]
[331966477,1720907443184,-297.21626423,0.00024931,2]
[331966478,1720907443194,-532.34,0.00024931,2]
[331966479,1720907443203,-500.0,0.00024931,2]
[331966480,1720907443212,-500.0,0.00024931,2]
[331966481,1720907443222,-500.0,0.00024931,2]
[331966482,1720907443231,-500.0,0.00024931,2]
[331966483,1720907443241,-500.0,0.00024931,2]
[331966484,1720907443250,-500.0,0.00024931,2]
[331966485,1720907443259,-151.0,0.00024931,7]
[331966486,1720907443272,-500.0,0.00024931,2]
[331966487,1720907443282,-500.0,0.00024931,2]
[331966488,1720907443293,-151.0,0.00024931,7]
[331966489,1720907443304,-151.0,0.00024931,7]
[331966490,1720907443313,-500.0,0.00024931,2]
[331966491,1720907443324,-200.0,0.00024931,2]
[331966492,1720907443334,-500.0,0.00024931,2]
[331966493,1720907443343,-168.08001,0.00024931,7]
[331966494,1720907443353,-448.15416869,0.00024931,2]
[331966495,1720907443364,-500.0,0.00024931,2]
[331966496,1720907443375,-500.0,0.00024931,2]
[331966497,1720907443384,-151.0,0.00024931,7]
[331966498,1720907443393,-151.0,0.00024931,7]
[331966499,1720907443403,-248.472287,0.00024931,7]
[331966500,1720907443412,-500.0,0.00024931,2]
[331966501,1720907443422,-500.0,0.00024931,2]
[331966502,1720907443431,-500.0,0.00024931,2]
[331966503,1720907443440,-151.0,0.00024931,7]
[331966504,1720907443450,-520.58660572,0.00024931,2]
[331966505,1720907443460,-265.191499,0.00024931,7]
[331966507,1720907443469,-985.905426,0.00024931,7]
[331966509,1720907443479,-985.905426,0.00024931,7]
[331966510,1720907443489,-985.905426,0.00024931,7]
[331966511,1720907443498,-985.905426,0.00024931,7]
[331966512,1720907443508,-500.0,0.00024931,2]
[331966513,1720907443517,-151.0,0.00024931,7]
[331966514,1720907443527,-500.0,0.00024931,2]
[331966515,1720907443536,-217.89236892,0.00024931,2]
[331966516,1720907443545,-500.0,0.00024931,2]
[331966517,1720907443555,-500.0,0.00024931,2]
[331966518,1720907443564,-500.0,0.00024931,2]
[331966519,1720907443573,-500.0,0.00024931,2]
[331966520,1720907443583,-500.0,0.00024931,2]
[331966521,1720907443592,-500.0,0.00024931,2]
[331966522,1720907443602,-509.20251714,0.00024931,2]
[331966523,1720907443612,-500.0,0.00024931,2]
[331966524,1720907443621,-500.0,0.00024931,2]
[331966525,1720907443630,-630.04,0.00024931,2]
[331966526,1720907443640,-500.0,0.00024931,2]
[331966527,1720907443650,-500.0,0.00024931,2]
[331966528,1720907443659,-151.0,0.00024931,7]
[331966529,1720907443668,-151.0,0.00024931,7]
[331966530,1720907443678,-569.55700973,0.00024931,2]
[331966531,1720907443687,-500.0,0.00024931,2]
[331966532,1720907443696,-500.0,0.00024931,2]
[331966533,1720907443705,-500.0,0.00024931,2]
[331966534,1720907443714,-500.0,0.00024931,2]
[331966535,1720907443723,-500.0,0.00024931,2]
[331966536,1720907443732,-500.0,0.00024931,2]
[331966537,1720907443742,-151.0,0.00024931,7]
[331966538,1720907443752,-519.05,0.00024931,2]
[331966539,1720907443761,-12866.48,0.00024931,2]
[331966540,1720907443770,-151.0,0.00024931,7]
[331966541,1720907443779,-660.330336,0.00024931,7]
[331966542,1720907443789,-701.38,0.00024931,2]
[331966543,1720907443798,-151.0,0.00024931,7]
[331966544,1720907443807,-660.330336,0.00024931,7]
[331966545,1720907443816,-500.0,0.00024931,2]
[331966546,1720907443825,-151.0,0.00024931,2]
[331966547,1720907443834,-500.0,0.00024931,2]
[331966548,1720907443843,-245.370634,0.00024931,7]
[331966549,1720907443852,-245.370634,0.00024931,7]
[331966550,1720907443862,-500.0,0.00024931,2]
[331966551,1720907443871,-500.0,0.00024931,2]
[331966552,1720907443881,-245.370634,0.00024931,7]
[331966553,1720907443890,-245.370634,0.00024931,7]
[331966554,1720907443900,-500.0,0.00024931,2]
[331966555,1720907443913,-500.0,0.00024931,2]
[331966556,1720907443925,-151.0,0.00024931,7]
[331966557,1720907443935,-151.0,0.00024931,7]
[331966558,1720907443944,-500.0,0.00024931,2]
[331966559,1720907443955,-500.0,0.00024931,2]
[331966560,1720907443964,-500.0,0.00024931,2]
[331966561,1720907443974,-500.0,0.00024931,2]
[331966562,1720907443986,-500.0,0.00024931,2]
[331966563,1720907443996,-500.0,0.00024931,2]
[331966564,1720907444005,-2088.85,0.00024931,2]
[331966565,1720907444015,-500.0,0.00024931,2]
[331966566,1720907444024,-500.0,0.00024931,2]
[331966567,1720907444033,-500.0,0.00024931,2]
[331966568,1720907444042,-160.413996,0.00024931,7]
[331966569,1720907444051,-500.0,0.00024931,2]
[331966570,1720907444060,-500.0,0.00024931,2]
[331966571,1720907444070,-500.0,0.00024931,2]
[331966572,1720907444079,-500.0,0.00024931,2]
[331966573,1720907444090,-500.0,0.00024931,2]
[331966574,1720907444100,-500.0,0.00024931,2]
[331966575,1720907444110,-500.0,0.00024931,2]
[331966576,1720907444120,-500.0,0.00024931,2]
[331966577,1720907444131,-500.0,0.00024931,2]
[331966578,1720907444140,-500.0,0.00024931,2]
[331966579,1720907444149,-500.0,0.00024931,2]
[331966580,1720907444159,-500.0,0.00024931,2]
[331966581,1720907444168,-522.99160165,0.00024931,2]
[331966582,1720907444178,-500.0,0.00024931,2]
[331966583,1720907444193,-500.0,0.00024931,2]
[331966584,1720907444202,-500.0,0.00024931,2]
[331966585,1720907444212,-617.45388926,0.00024931,2]
[331966586,1720907444223,-500.0,0.00024931,2]
[331966587,1720907444233,-1135.98,0.00024931,2]
[331966588,1720907444242,-151.0,0.00024931,7]
[331966589,1720907444252,-626.527804,0.00024931,7]
[331966590,1720907444261,-500.0,0.00024931,2]
[331966591,1720907444270,-500.0,0.00024931,2]
[331966592,1720907444281,-626.527804,0.00024931,7]
[331966593,1720907444292,-500.0,0.00024931,2]
[331966594,1720907444301,-759.682417,0.00024931,7]
[331966595,1720907444310,-500.0,0.00024931,2]
[331966596,1720907444319,-500.0,0.00024931,2]
[331966597,1720907444329,-759.682417,0.00024931,7]
[331966598,1720907444338,-500.0,0.00024931,2]
[331966599,1720907444348,-500.0,0.00024931,2]
[331966600,1720907444359,-500.0,0.00024931,2]
[331966601,1720907444370,-5657.45500899,0.00024952,2]
[331966602,1720907444382,-151.0,0.00024956,7]
[331966603,1720907444393,-151.0,0.00024956,7]
[331966604,1720907444404,-175.88193,0.00024956,7]
[331966605,1720907444415,-151.0,0.00024956,7]
[331966606,1720907444425,-660.330336,0.00024956,7]
[331966607,1720907444434,-151.0,0.00024956,7]
[331966608,1720907444444,-660.330336,0.00024956,7]
[331966609,1720907444455,-151.0,0.00024956,7]
[331966610,1720907444464,-275.72873,0.00024956,7]
[331966611,1720907444473,-8284.69694163,0.00025147,3]
[331966612,1720907444485,-5657.45500899,0.0002515,2]
[331966613,1720907444495,-500.0,0.00025155,2]
[331966614,1720907444505,-160.643833,0.00025157,7]
[331966615,1720907444516,-574.569602,0.00025157,7]
[331966616,1720907444527,-491.252099,0.00025157,7]
[331966617,1720907444537,-491.252099,0.00025157,7]
[331966618,1720907444547,-151.0,0.00025157,7]
[331966619,1720907444558,-152.38406,0.00025157,7]
[331966620,1720907444568,-278.095758,0.00025157,7]
[331966621,1720907444578,-151.0,0.00025157,7]
[331966622,1720907444590,-8284.69694163,0.00025195,3]
[331966623,1720907444600,-151.0,0.00025195,7]
[331966624,1720907444610,-174.975568,0.00025195,7]
[331966625,1720907444621,-151.0,0.00025195,7]
[331966626,1720907444631,-782.620676,0.00025195,7]
[331966627,1720907444642,-782.620676,0.00025195,7]
[331966628,1720907444654,-151.625878,0.00025195,7]
[331966629,1720907444663,-151.0,0.00025197,7]
[331966630,1720907444673,-151.0,0.00025197,7]
[331966631,1720907444682,-151.0,0.00025198,7]
[331966632,1720907444691,-151.0,0.00025198,7]
[331966633,1720907444700,-151.0,0.00025198,7]
[331966634,1720907444712,-151.0,0.00025198,7]
[331966635,1720907444723,-151.0,0.00025198,7]
[331966636,1720907444733,-1000.0,0.00025202,2]
[331966637,1720907444742,-1000.0,0.00025203,2]
[331966638,1720907444752,-626.527804,0.00025203,7]
[331966639,1720907444763,-626.527804,0.00025203,7]
[331966640,1720907444772,-759.682417,0.00025203,7]
[331966641,1720907444782,-759.682417,0.00025203,7]
[331966642,1720907444792,-500.0,0.00025204,2]
[331966643,1720907444802,-500.0,0.00025204,2]
[331966644,1720907444812,-500.0,0.00025205,2]
[331966645,1720907444824,-500.0,0.00025205,2]
[331966646,1720907444836,-500.0,0.00025205,2]
[331966647,1720907444915,-500.0,0.00025205,2]
[331966648,1720907444925,-151.0,0.00025205,4]
[331966649,1720907444935,-511.72478033,0.00025205,2]
[331966650,1720907444944,-500.0,0.00025205,2]
[331966651,1720907444954,-500.0,0.00025205,2]
[331966652,1720907444965,-500.0,0.00025205,2]
[331966653,1720907444975,-158.44052637,0.00025205,2]
[331966654,1720907444985,-500.0,0.00025205,2]
[331966655,1720907444995,-500.0,0.00025205,2]
[331966656,1720907445004,-503.89,0.00025205,2]
[331966657,1720907445013,-500.0,0.00025205,2]
[331966658,1720907445022,-221.14,0.00025205,2]
[331966659,1720907445032,-500.0,0.00025205,2]
[331966660,1720907445041,-223.38415609,0.00025205,2]
[331966661,1720907445050,-173.86,0.00025205,2]
[331966662,1720907445059,-500.0,0.00025205,2]
[331966663,1720907445068,-500.0,0.00025205,2]
[331966664,1720907445077,-500.0,0.00025205,2]
[331966665,1720907445086,-500.0,0.00025205,2]
[331966666,1720907445095,-500.0,0.00025205,2]
[331966667,1720907445104,-577.621216,0.00025205,7]
[331966668,1720907445113,-165.134278,0.00025205,7]
[331966669,1720907445122,-577.621216,0.00025205,7]
[331966670,1720907445131,-500.0,0.00025205,2]
[331966671,1720907445141,-797.2,0.00025205,2]
[331966672,1720907445150,-500.0,0.00025205,2]
[331966673,1720907445159,-500.0,0.00025205,2]
[331966674,1720907445169,-1500.0,0.00025205,2]
[331966675,1720907445179,-500.0,0.00025205,2]
[331966676,1720907445188,-500.0,0.00025205,2]
[331966677,1720907445198,-500.0,0.00025205,2]
[331966678,1720907445208,-418.09076287,0.00025205,2]
[331966679,1720907445217,-574.569602,0.00025205,7]
[331966680,1720907445226,-2111.15,0.00025205,2]
[331966681,1720907445235,-333.668,0.00025205,2]
[331966682,1720907445244,-500.0,0.00025205,2]
[331966683,1720907445254,-491.252099,0.00025205,7]
[331966685,1720907445263,-491.252099,0.00025205,7]
[331966687,1720907445272,-500.0,0.00025205,2]
[331966688,1720907445284,-505.61919787,0.00025205,2]
[331966689,1720907445294,-151.0,0.00025205,7]
[331966690,1720907445305,-500.0,0.00025205,2]
[331966692,1720907445315,-500.0,0.00025205,2]
[331966693,1720907445326,-500.0,0.00025205,2]
[331966694,1720907445338,-500.0,0.00025205,2]
[331966695,1720907445347,-500.0,0.00025205,2]
[331966696,1720907445357,-500.0,0.00025205,2]
[331966697,1720907445367,-500.0,0.00025205,2]
[331966698,1720907445377,-500.0,0.00025205,2]
[331966699,1720907445386,-151.0,0.00025205,7]
[331966700,1720907445396,-151.0,0.00025205,7]
[331966701,1720907445405,-500.0,0.00025205,2]
[331966702,1720907445415,-200.0,0.00025205,2]
[331966703,1720907445424,-500.0,0.00025205,2]
[331966704,1720907445435,-426.43,0.00025205,2]
[331966705,1720907445445,-151.0,0.00025205,7]
[331966706,1720907445456,-500.0,0.00025205,2]
[331966707,1720907445467,-500.0,0.00025205,2]
[331966708,1720907445476,-985.905426,0.00025205,7]
[331966709,1720907445485,-985.905426,0.00025205,7]
[331966711,1720907445495,-500.0,0.00025205,2]
[331966712,1720907445507,-151.0,0.00025205,7]
[331966713,1720907445518,-500.0,0.00025205,2]
[331966714,1720907445528,-508.37111706,0.00025205,2]
[331966715,1720907445539,-557.56,0.00025205,2]
[331966716,1720907445548,-500.0,0.00025205,2]
[331966717,1720907445559,-500.0,0.00025205,2]
[331966718,1720907445569,-500.0,0.00025205,2]
[331966719,1720907445579,-500.0,0.00025205,2]
[331966720,1720907445592,-630.04,0.00025205,2]
[331966722,1720907445601,-500.0,0.00025205,2]
[331966724,1720907445612,-500.0,0.00025205,2]
[331966725,1720907445624,-151.0,0.00025205,7]
[331966726,1720907445635,-500.0,0.00025205,2]
[331966727,1720907445647,-523.54,0.00025205,2]
[331966728,1720907445657,-500.0,0.00025205,2]
[331966729,1720907445668,-519.05,0.00025205,2]
[331966730,1720907445677,-12866.48,0.00025205,2]
[331966731,1720907445686,-151.0,0.00025205,7]
[331966732,1720907445697,-660.330336,0.00025205,7]
[331966733,1720907445706,-701.38,0.00025205,2]
[331966735,1720907445717,-151.0,0.00025205,7]
[331966737,1720907445727,-660.330336,0.00025205,7]
[331966738,1720907445736,-500.0,0.00025205,2]
[331966740,1720907445745,-245.370634,0.00025205,7]
[331966741,1720907445754,-500.0,0.00025205,2]
[331966742,1720907445763,-245.370634,0.00025205,7]
[331966743,1720907445771,-500.0,0.00025205,2]
[331966744,1720907445780,-151.0,0.00025205,7]
[331966745,1720907445789,-500.0,0.00025205,2]
[331966746,1720907445799,-258.88605255,0.00025205,2]
[331966747,1720907445808,-500.0,0.00025205,2]
[331966748,1720907445817,-500.0,0.00025205,2]
[331966749,1720907445825,-2088.85,0.00025205,2]
[331966750,1720907445834,-500.0,0.00025205,2]
[331966752,1720907445843,-500.0,0.00025205,2]
[331966754,1720907445852,-500.0,0.00025205,2]
[331966756,1720907445862,-500.0,0.00025205,2]
[331966757,1720907445871,-500.0,0.00025205,2]
[331966758,1720907445882,-500.0,0.00025205,2]
[331966759,1720907445891,-539.52300165,0.00025205,2]
[331966760,1720907445901,-545.75,0.00025205,2]
[331966761,1720907445910,-500.0,0.00025205,2]
[331966762,1720907445919,-500.0,0.00025205,2]
[331966763,1720907445929,-500.0,0.00025205,2]
[331966764,1720907445938,-500.0,0.00025205,2]
[331966765,1720907445948,-500.0,0.00025205,2]
[331966766,1720907445957,-270.68,0.00025205,2]
[331966767,1720907445967,-1135.98,0.00025205,2]
[331966768,1720907445977,-500.0,0.00025205,2]
[331966769,1720907445987,-500.0,0.00025205,2]
[331966770,1720907445997,-500.0,0.00025205,2]
[331966771,1720907446007,-500.0,0.00025205,2]
[331966772,1720907446017,-507.16,0.00025205,2]
[331966773,1720907446026,-500.0,0.00025205,2]
[331966774,1720907446036,-500.0,0.00025205,2]
[331966775,1720907446045,-500.0,0.00025205,2]
[331966777,1720907446054,-1000.0,0.00025222,2]
[331966779,1720907446064,-626.527804,0.00025222,7]
[331966780,1720907446074,-626.527804,0.00025222,7]
[331966781,1720907446083,-759.682417,0.00025222,7]
[331966782,1720907446093,-759.682417,0.00025222,7]
[331966783,1720907446103,-1000.0,0.00025236,2]
[331966784,1720907446113,-1000.0,0.00025237,2]
[331966785,1720907446122,-1000.0,0.00025252,2]
[331966786,1720907446131,-316.49694238,0.00025263,2]
[331966787,1720907446141,-300.0,0.00025305,2]
[331966788,1720907446151,-364.8949385,0.00025329,2]
[331966789,1720907446162,-241.5847,0.0002533,2]
[331966790,1720907446172,-300.0,0.00025343,2]
[331966791,1720907446182,-8284.69694163,0.00025344,3]
[331966792,1720907446191,-162.840297,0.00025345,7]
[331966793,1720907446200,-782.620676,0.00025345,7]
[331966794,1720907446209,-782.620676,0.00025345,7]
[331966795,1720907446219,-5657.45500899,0.00025347,2]
[331966796,1720907446229,-1000.0,0.00025353,2]
[331966797,1720907446238,-1000.0,0.00025354,2]
[331966798,1720907446249,-500.0,0.00025355,2]
[331966799,1720907446258,-300.0,0.00025364,2]
[331966800,1720907446268,-300.0,0.00025389,2]
[331966801,1720907446277,-151.62,0.0002539,62]
[331966802,1720907446290,-151.0,0.000254,14]
[331966803,1720907446299,-6972.17254742,0.00025411,5]
[331966804,1720907446308,-1000.0,0.00025411,2]
[331966805,1720907446318,-151.0,0.00025417,7]
[331966806,1720907446329,-1000.0,0.00025418,2]
[331966807,1720907446337,-500.0,0.00025446,2]
[331966808,1720907446347,-49708.1816498,0.00025447,3]
[331966809,1720907446356,-152.591274,0.00025447,7]
[331966810,1720907446368,-318.15,0.00025447,7]
[331966811,1720907446378,-318.15,0.00025447,7]
[331966812,1720907446389,-151.0,0.00025447,7]
[331966813,1720907446399,-151.0,0.00025447,7]
[331966814,1720907446408,-151.0,0.00025447,7]
[331966815,1720907446417,-151.0,0.00025447,7]
[331966816,1720907446426,-151.0,0.00025447,7]
[331966817,1720907446436,-151.0,0.00025447,7]
[331966818,1720907446447,-151.0,0.00025447,7]
[331966819,1720907446457,-577.621216,0.00025447,7]
[331966820,1720907446467,-577.621216,0.00025447,7]
[331966821,1720907446477,-782.620676,0.00025447,7]
[331966822,1720907446487,-782.620676,0.00025447,7]
[331966823,1720907446497,-574.569602,0.00025447,7]
[331966824,1720907446506,-491.252099,0.00025447,7]
[331966825,1720907446515,-491.252099,0.00025447,7]
[331966826,1720907446524,-172.762044,0.00025447,7]
[331966827,1720907446536,-151.0,0.00025447,7]
[331966828,1720907446547,-151.0,0.00025447,7]
[331966829,1720907446557,-985.905426,0.00025447,7]
[331966830,1720907446567,-985.905426,0.00025447,7]
[331966831,1720907446578,-151.0,0.00025447,7]
[331966832,1720907446589,-151.0,0.00025447,7]
[331966833,1720907446598,-151.0,0.00025447,7]
[331966834,1720907446609,-660.330336,0.00025447,7]
[331966835,1720907446620,-167.953934,0.00025447,7]
[331966836,1720907446632,-660.330336,0.00025447,7]
[331966837,1720907446641,-245.370634,0.00025447,7]
[331966838,1720907446651,-245.370634,0.00025447,7]
[331966839,1720907446661,-151.0,0.00025447,7]
[331966840,1720907446670,-626.527804,0.00025447,7]
[331966841,1720907446682,-626.527804,0.00025447,7]